bitfinex-derivatives/quotes_SOLF0:USTF0_20250426
["timestamp","ask_amount","ask_price","bid_price","bid_amount"]
[1745640018578,6.6022,151.4,151.38,7.24667167]
[1745640018978,6.6019,151.41,151.38,7.24667167]
[1745640019173,7.24667167,151.41,151.36,7.24667167]
[1745640019678,6.6029,151.39,151.36,7.24667167]
[1745640020775,6.6029,151.39,151.35,12.3676]
[1745640020981,7.24667167,151.39,151.35,1.8912]
[1745640021482,6.6039,151.36,151.35,1.8912]
[1745640022183,6.6036,151.37,151.35,1.8912]
[1745640022682,6.6039,151.36,151.35,1.8912]
[1745640022981,6.6039,151.36,151.34,7.24667167]
[1745640023184,6.6037,151.37,151.34,7.24667167]
[1745640023381,7.24667167,151.39,151.34,7.24667167]
[1745640023782,6.604,151.36,151.34,7.24667167]
[1745640026386,6.6036,151.37,151.34,7.24667167]
[1745640028589,7.24667167,151.39,151.34,7.24667167]
[1745640029589,6.604,151.36,151.34,7.24667167]
[1745640034394,6.6044,151.35,151.34,7.24667167]
[1745640035893,6.6044,151.35,151.33,7.24667167]
[1745640036594,6.6041,151.36,151.33,7.24667167]
[1745640037094,6.6041,151.36,151.33,13.85187167]
[1745640037698,6.6041,151.36,151.33,7.24667167]
[1745640039798,6.6046,151.35,151.33,7.24667167]
[1745640042098,6.6041,151.36,151.33,7.24667167]
[1745640042902,6.6045,151.35,151.33,7.24667167]
[1745640045799,6.6041,151.36,151.33,7.24667167]
[1745640047103,6.6041,151.36,151.33,13.85177167]
[1745640050104,6.6041,151.36,151.33,7.24667167]
[1745640050605,6.6041,151.36,151.33,13.85187167]
[1745640050803,23.76,151.4,151.35,7.24667167]
[1745640051106,23.76,151.4,151.37,7.24667167]
[1745640051303,6.6024,151.4,151.37,7.24667167]
[1745640051504,9.24847167,151.42,151.37,7.24667167]
[1745640052106,6.6022,151.4,151.37,13.85017167]
[1745640053313,6.6022,151.4,151.37,6.6035]
[1745640053506,6.6022,151.4,151.37,13.85017167]
[1745640053808,6.6022,151.4,151.37,7.24667167]
[1745640055116,6.6022,151.4,151.36,6.6038]
[1745640055117,7.24667167,151.4,151.36,7.24667167]
[1745640055311,7.24667167,151.38,151.33,7.24667167]
[1745640055613,6.6037,151.37,151.33,13.85177167]
[1745640058116,6.6037,151.37,151.34,7.24667167]
[1745640058310,6.6032,151.38,151.35,7.24667167]
[1745640058614,6.6032,151.38,151.36,7.24667167]
[1745640062021,7.24667167,151.39,151.35,7.24667167]
[1745640062213,7.24667167,151.39,151.34,7.24667167]
[1745640062518,6.6043,151.36,151.34,7.24667167]
[1745640063017,6.6044,151.35,151.34,7.24667167]
[1745640063219,6.6044,151.35,151.33,7.24667167]
[1745640063610,6.6052,151.34,151.31,31.00667167]
[1745640065317,6.6052,151.34,151.31,37.61267167]
[1745640065520,6.6044,151.35,151.31,31.00667167]
[1745640065821,7.24667167,151.39,151.33,7.24667167]
[1745640066221,6.6042,151.36,151.33,7.24667167]
[1745640067827,6.6045,151.35,151.33,7.24667167]
[1745640068122,7.24667167,151.37,151.33,7.24667167]
[1745640068322,7.24667167,151.37,151.31,23.76]
[1745640068522,7.24667167,151.37,151.32,7.24667167]
[1745640069023,6.6049,151.34,151.32,7.24667167]
[1745640074131,7.24667167,151.37,151.32,7.24667167]
[1745640074634,7.24667167,151.35,151.3,7.24667167]
[1745640074828,6.606,151.32,151.3,7.24667167]
[1745640075327,6.6061,151.31,151.3,7.24667167]
[1745640075626,7.24667167,151.33,151.29,1.9278]
[1745640075828,7.24667167,151.33,151.28,30.98667167]
[1745640076240,7.24667167,151.33,151.28,23.74]
[1745640076433,7.24667167,151.33,151.28,30.98667167]
[1745640077333,6.6067,151.3,151.28,30.98667167]
[1745640077634,6.6067,151.3,151.28,7.24667167]
[1745640078035,6.607,151.29,151.26,7.24667167]
[1745640078633,7.24667167,151.31,151.26,7.24667167]
[1745640078837,7.24667167,151.29,151.25,1.9817]
[1745640079134,7.24667167,151.29,151.23,7.24667167]
[1745640079532,6.6082,151.27,151.23,13.85607167]
[1745640080036,6.6082,151.27,151.25,7.24667167]
[1745640085836,6.6083,151.26,151.25,7.24667167]
[1745640086039,6.6083,151.26,151.24,7.24667167]
[1745640086335,6.6083,151.26,151.23,7.24667167]
[1745640087236,6.6083,151.26,151.23,13.85627167]
[1745640088138,6.6083,151.26,151.23,7.24667167]
[1745640092846,6.6083,151.26,151.23,13.85617167]
[1745640093044,6.608,151.27,151.23,13.85617167]
[1745640094352,6.6083,151.26,151.23,13.85617167]
[1745640094653,7.24667167,151.29,151.23,13.85617167]
[1745640095248,7.24667167,151.31,151.27,7.24667167]
[1745640095449,23.74,151.32,151.27,7.24667167]
[1745640095757,7.24667167,151.31,151.27,7.24667167]
[1745640096048,7.24667167,151.29,151.25,7.24667167]
[1745640096846,7.24667167,151.29,151.23,13.85597167]
[1745640098254,6.6083,151.26,151.23,13.85597167]
[1745640099757,6.608,151.27,151.23,13.85597167]
[1745640100558,6.608,151.27,151.24,6.6091]
[1745640101156,23.74,151.32,151.23,7.24667167]
[1745640101358,30.98667167,151.32,151.27,7.24667167]
[1745640101861,6.6069,151.3,151.27,7.24667167]
[1745640106568,30.98667167,151.32,151.27,7.24667167]
[1745640106760,7.24667167,151.34,151.29,7.24667167]
[1745640107469,6.606,151.32,151.29,7.24667167]
[1745640107668,7.24667167,151.34,151.29,7.24667167]
[1745640108169,23.74,151.35,151.31,7.24667167]
[1745640108571,7.24667167,151.36,151.31,7.24667167]
[1745640108771,30.98667167,151.38,151.33,7.24667167]
[1745640109467,6.6043,151.36,151.33,7.24667167]
[1745640109769,30.98667167,151.38,151.33,7.24667167]
[1745640110171,6.6047,151.35,151.33,7.24667167]
[1745640113673,6.6048,151.34,151.33,7.24667167]
[1745640114875,6.6056,151.33,151.31,9.19107167]
[1745640115079,7.24667167,151.36,151.31,9.19107167]
[1745640116577,6.6052,151.34,151.31,9.19107167]
[1745640116876,7.24667167,151.36,151.31,9.19107167]
[1745640117482,6.6056,151.33,151.31,9.19107167]
[1745640117778,7.24667167,151.36,151.31,9.19107167]
[1745640117972,6.605,151.34,151.31,9.19107167]
[1745640118279,6.605,151.34,151.31,15.79717167]
[1745640118582,30.98667167,151.38,151.32,7.24667167]
[1745640118779,30.98667167,151.38,151.32,13.85207167]
[1745640119277,6.6042,151.36,151.32,13.85207167]
[1745640119779,6.6042,151.36,151.34,7.24667167]
[1745640121981,30.98667167,151.38,151.34,7.24667167]
[1745640121982,6.6037,151.37,151.34,7.24667167]
[1745640122177,6.6037,151.37,151.34,13.85147167]
[1745640122380,30.98667167,151.38,151.34,13.85147167]
[1745640122584,30.3434,151.38,151.34,13.85147167]
[1745640122784,7.24667167,151.4,151.34,13.85147167]
[1745640124385,6.6036,151.37,151.34,13.85147167]
[1745640125888,6.6036,151.37,151.34,7.24667167]
[1745640126687,6.604,151.36,151.34,7.24667167]
[1745640126884,6.604,151.36,151.32,10.4035]
[1745640126885,7.24667167,151.38,151.33,7.24667167]
[1745640127084,6.6049,151.34,151.32,7.24667167]
[1745640127278,7.24667167,151.35,151.31,1.9444]
[1745640127486,7.24667167,151.34,151.31,1.9444]
[1745640127682,6.6055,151.33,151.31,1.9444]
[1745640127890,6.6055,151.33,151.31,9.19107167]
[1745640129793,6.605,151.34,151.31,9.19107167]
[1745640129991,7.24667167,151.36,151.31,9.19107167]
[1745640130196,23.72,151.37,151.31,9.19107167]
[1745640130393,6.6049,151.34,151.31,9.19107167]
[1745640130794,7.24667167,151.36,151.31,9.19107167]
[1745640130993,6.6055,151.33,151.31,9.19107167]
[1745640131988,6.6049,151.34,151.31,9.19107167]
[1745640132293,7.24667167,151.36,151.31,9.19107167]
[1745640132493,6.6057,151.32,151.3,23.74]
[1745640133089,6.6057,151.32,151.29,7.24667167]
[1745640133691,7.24667167,151.32,151.27,34.85997167]
[1745640133887,7.24667167,151.3,151.23,2.0344]
[1745640134093,7.24667167,151.28,151.23,9.28107167]
[1745640134690,6.608,151.27,151.23,15.89067167]
[1745640135794,6.6084,151.26,151.23,9.28107167]
[1745640136094,7.24667167,151.28,151.23,9.28107167]
[1745640136694,6.6082,151.27,151.23,15.89067167]
[1745640136895,7.24667167,151.28,151.23,9.28107167]
[1745640137394,6.6083,151.26,151.23,9.28107167]
[1745640138591,7.24667167,151.28,151.23,15.89067167]
[1745640138592,6.608,151.27,151.23,15.89067167]
[1745640144101,30.96667167,151.31,151.25,13.85537167]
[1745640144400,30.96667167,151.31,151.27,7.24667167]
[1745640144599,7.24667167,151.33,151.29,7.24667167]
[1745640144797,23.72,151.34,151.31,7.24667167]
[1745640145402,6.6054,151.33,151.31,7.24667167]
[1745640145701,23.72,151.34,151.31,7.24667167]
[1745640146101,6.6052,151.33,151.31,7.24667167]
[1745640149295,6.6057,151.32,151.31,7.24667167]
[1745640149502,23.72,151.34,151.31,7.24667167]
[1745640149901,6.6056,151.33,151.31,7.24667167]
[1745640150602,6.6057,151.32,151.31,7.24667167]
[1745640151203,6.6057,151.32,151.29,13.85357167]
[1745640152103,6.6057,151.32,151.29,7.24667167]
[1745640152303,7.24667167,151.33,151.27,11.23007167]
[1745640152503,7.24667167,151.31,151.27,7.24667167]
[1745640153101,6.6068,151.3,151.27,7.24667167]
[1745640154406,6.6068,151.3,151.27,13.85447167]
[1745640154602,6.6068,151.3,151.27,7.24667167]
[1745640154907,7.24667167,151.31,151.27,7.24667167]
[1745640155206,6.6069,151.3,151.27,7.24667167]
[1745640155406,7.24667167,151.31,151.27,7.24667167]
[1745640156106,7.24667167,151.31,151.26,23.72]
[1745640156308,7.24667167,151.31,151.26,30.96667167]
[1745640156506,6.6074,151.29,151.26,7.24667167]
[1745640157105,6.6067,151.3,151.26,13.85487167]
[1745640159408,6.6071,151.29,151.26,7.24667167]
[1745640161007,6.6075,151.28,151.26,7.24667167]
[1745640161905,6.6079,151.27,151.24,7.24667167]
[1745640162305,7.24667167,151.29,151.24,7.24667167]
[1745640162808,6.6076,151.28,151.24,13.85557167]
[1745640165007,6.608,151.27,151.24,13.85557167]
[1745640166206,6.6076,151.28,151.24,13.85557167]
[1745640168206,6.6076,151.28,151.24,7.24667167]
[1745640168709,6.6076,151.28,151.24,13.85557167]
[1745640170414,30.96667167,151.33,151.26,7.24667167]
[1745640170607,30.96667167,151.33,151.28,7.24667167]
[1745640170804,6.6062,151.31,151.28,7.24667167]
[1745640171710,6.6059,151.32,151.28,7.24667167]
[1745640171914,6.6059,151.32,151.3,7.24667167]
[1745640172413,6.6055,151.33,151.3,7.24667167]
[1745640173107,6.6057,151.32,151.3,7.24667167]
[1745640173313,7.24667167,151.33,151.28,7.24667167]
[1745640174013,6.6066,151.3,151.28,7.24667167]
[1745640175013,6.6063,151.31,151.28,7.24667167]
[1745640175313,7.24667167,151.33,151.28,7.24667167]
[1745640175615,6.6066,151.3,151.28,7.24667167]
[1745640177516,6.6063,151.31,151.28,7.24667167]
[1745640177815,7.24667167,151.33,151.28,7.24667167]
[1745640179618,6.6065,151.31,151.28,7.24667167]
[1745640180625,6.6066,151.3,151.28,7.24667167]
[1745640182720,6.6062,151.31,151.28,7.24667167]
[1745640183020,7.24667167,151.33,151.28,13.85397167]
[1745640183221,6.606,151.32,151.28,13.85397167]
[1745640183821,6.6062,151.31,151.28,13.85397167]
[1745640185723,6.6062,151.31,151.28,7.24667167]
[1745640186124,7.24667167,151.33,151.28,7.24667167]
[1745640186421,7.24667167,151.35,151.3,7.24667167]
[1745640186925,6.6054,151.33,151.3,7.24667167]
[1745640187121,7.24667167,151.35,151.3,7.24667167]
[1745640187422,6.6055,151.33,151.3,7.24667167]
[1745640187622,6.6055,151.33,151.3,13.85317167]
[1745640188121,6.6055,151.33,151.3,7.24667167]
[1745640188322,6.6058,151.32,151.3,7.24667167]
[1745640188722,7.24667167,151.35,151.3,7.24667167]
[1745640189023,6.6064,151.31,151.28,13.13107167]
[1745640191426,6.6066,151.3,151.28,13.13107167]
[1745640196429,6.6066,151.3,151.28,11.17987167]
[1745640198732,6.6063,151.31,151.28,11.17987167]
[1745640199029,6.6063,151.31,151.28,17.78727167]
[1745640200531,6.6054,151.33,151.3,7.24667167]
[1745640201133,6.6059,151.32,151.3,7.24667167]
[1745640201430,30.96667167,151.36,151.3,7.24667167]
[1745640201825,6.6055,151.33,151.3,13.85297167]
[1745640202331,6.6055,151.33,151.3,7.24667167]
[1745640202533,6.6058,151.32,151.3,7.24667167]
[1745640204729,30.96667167,151.36,151.3,13.85307167]
[1745640204932,30.94667167,151.39,151.34,7.24667167]
[1745640205934,23.7,151.39,151.36,7.24667167]
[1745640206439,6.6033,151.38,151.36,7.24667167]
[1745640206630,23.7,151.39,151.36,7.24667167]
[1745640207140,30.94667167,151.39,151.36,7.24667167]
[1745640207339,6.6035,151.37,151.36,7.24667167]
[1745640210542,7.24667167,151.38,151.32,6.6056]
[1745640210842,7.24667167,151.38,151.33,7.24667167]
[1745640212346,6.6042,151.36,151.33,7.24667167]
[1745640212643,6.6042,151.36,151.33,13.85187167]
[1745640214046,6.6037,151.37,151.35,7.24667167]
[1745640215246,6.6032,151.38,151.35,7.24667167]
[1745640217744,6.6037,151.37,151.35,7.24667167]
[1745640225158,6.6032,151.38,151.35,7.24667167]
[1745640225362,6.6032,151.38,151.36,7.24667167]
[1745640225559,6.6032,151.38,151.37,7.24667167]
[1745640229960,6.6036,151.37,151.35,7.24667167]
[1745640233162,6.6039,151.36,151.35,7.24667167]
[1745640233462,23.7,151.39,151.35,7.24667167]
[1745640233662,6.6037,151.37,151.35,7.24667167]
[1745640234665,7.24667167,151.37,151.32,7.24667167]
[1745640235166,6.6052,151.33,151.3,7.24667167]
[1745640235367,7.24667167,151.35,151.3,7.24667167]
[1745640235561,30.92667167,151.35,151.3,7.24667167]
[1745640236066,6.606,151.32,151.3,7.24667167]
[1745640237970,6.6054,151.33,151.3,7.24667167]
[1745640238166,6.6054,151.33,151.3,13.85317167]
[1745640238766,6.6054,151.33,151.3,7.24667167]
[1745640239965,6.6054,151.33,151.3,13.85317167]
[1745640240164,30.2844,151.35,151.32,7.24667167]
[1745640240369,23.7,151.38,151.34,7.24667167]
[1745640241464,23.7,151.38,151.34,13.85137167]
[1745640241669,23.7,151.38,151.36,7.24667167]
[1745640241870,23.7,151.41,151.36,7.24667167]
[1745640242070,6.6035,151.37,151.36,7.24667167]
[1745640242370,7.24667167,151.4,151.34,7.24667167]
[1745640243271,6.6044,151.35,151.34,7.24667167]
[1745640243471,7.24667167,151.38,151.32,7.24667167]
[1745640244169,7.24667167,151.36,151.32,7.24667167]
[1745640245469,7.24667167,151.36,151.31,7.24667167]
[1745640246273,6.6055,151.33,151.31,7.24667167]
[1745640247170,6.605,151.34,151.31,7.24667167]
[1745640247471,23.7,151.37,151.33,7.24667167]
[1745640247875,6.604,151.36,151.35,7.24667167]
[1745640248667,6.6046,151.35,151.33,7.24667167]
[1745640248972,23.7,151.37,151.33,7.24667167]
[1745640251272,6.6048,151.34,151.33,7.24667167]
[1745640251475,7.24667167,151.36,151.31,7.24667167]
[1745640251870,6.6055,151.33,151.31,7.24667167]
[1745640252172,7.24667167,151.36,151.31,7.24667167]
[1745640252473,6.6051,151.34,151.31,7.24667167]
[1745640252674,23.7,151.37,151.33,7.24667167]
[1745640253068,6.6044,151.35,151.33,7.24667167]
[1745640254274,6.6049,151.34,151.29,23.7]
[1745640254472,6.6049,151.34,151.32,7.24667167]
[1745640255072,6.6052,151.33,151.32,7.24667167]
[1745640255974,6.6059,151.32,151.3,7.24667167]
[1745640256274,7.24667167,151.36,151.3,7.24667167]
[1745640256772,6.606,151.32,151.3,7.24667167]
[1745640259476,6.6061,151.31,151.3,7.24667167]
[1745640261278,6.6059,151.32,151.3,7.24667167]
[1745640261778,7.24667167,151.36,151.3,7.24667167]
[1745640263281,6.6059,151.32,151.3,7.24667167]
[1745640264279,6.6061,151.31,151.3,7.24667167]
[1745640264677,7.24667167,151.32,151.28,7.24667167]
[1745640264876,30.92667167,151.32,151.26,30.92667167]
[1745640265077,6.6077,151.28,151.26,30.92667167]
[1745640266183,6.6079,151.27,151.24,7.24667167]
[1745640267580,6.6079,151.27,151.24,13.85587167]
[1745640267777,7.24667167,151.3,151.24,7.24667167]
[1745640267983,7.24667167,151.28,151.24,7.24667167]
[1745640268174,6.6086,151.26,151.24,7.24667167]
[1745640269183,7.24667167,151.26,151.22,1.9503]
[1745640269681,6.6088,151.25,151.22,1.9503]
[1745640269982,7.24667167,151.26,151.22,1.9503]
[1745640270382,6.6092,151.25,151.22,1.9503]
[1745640271187,13.85527167,151.26,151.22,8.5602]
[1745640274588,6.6093,151.24,151.2,30.2905]
[1745640274887,6.6093,151.24,151.21,7.24667167]
[1745640277191,6.6093,151.24,151.21,13.85717167]
[1745640277393,6.6089,151.25,151.21,13.85717167]
[1745640277993,6.6093,151.24,151.21,13.85717167]
[1745640280295,6.6093,151.24,151.21,7.24667167]
[1745640280495,7.24667167,151.26,151.21,7.24667167]
[1745640281596,6.61,151.23,151.21,7.24667167]
[1745640282199,6.6101,151.22,151.21,7.24667167]
[1745640283598,6.6101,151.22,151.19,13.85787167]
[1745640285601,30.92667167,151.24,151.19,13.85787167]
[1745640285602,6.6098,151.23,151.19,13.85787167]
[1745640285799,6.6098,151.23,151.2,6.6108]
[1745640287405,6.6098,151.23,151.2,13.85747167]
[1745640293402,23.68,151.24,151.22,7.24667167]
[1745640293608,30.94667167,151.27,151.22,7.24667167]
[1745640293807,23.7,151.27,151.24,7.24667167]
[1745640294903,30.3081,151.27,151.24,7.24667167]
[1745640297009,30.94667167,151.3,151.24,7.24667167]
[1745640297308,30.94667167,151.3,151.26,7.24667167]
[1745640297512,6.6073,151.29,151.26,7.24667167]
[1745640297814,30.94667167,151.3,151.26,7.24667167]
[1745640298211,6.6071,151.29,151.26,7.24667167]
[1745640298917,6.6077,151.28,151.26,7.24667167]
[1745640299514,23.7,151.3,151.26,7.24667167]
[1745640299812,506.72667167,151.33,151.28,7.24667167]
[1745640300415,30.92667167,151.33,151.28,7.24667167]
[1745640300712,23.68,151.33,151.3,7.24667167]
[1745640302409,23.68,151.33,151.3,13.85317167]
[1745640302713,7.24667167,151.35,151.3,13.85317167]
[1745640303109,6.6049,151.34,151.3,13.85317167]
[1745640304516,30.2842,151.36,151.32,13.85227167]
[1745640305111,6.6044,151.35,151.32,13.85227167]
[1745640305313,6.6044,151.35,151.32,7.24667167]
[1745640308018,6.6049,151.34,151.32,7.24667167]
[1745640310621,6.6044,151.35,151.32,7.24667167]
[1745640310817,6.6044,151.35,151.33,7.24667167]
[1745640312921,30.2841,151.36,151.33,7.24667167]
[1745640314523,6.6045,151.35,151.33,7.24667167]
[1745640319726,23.68,151.36,151.33,13.85187167]
[1745640320026,23.68,151.36,151.33,7.24667167]
[1745640320527,30.2843,151.36,151.33,7.24667167]
[1745640321229,30.90667167,151.39,151.35,7.24667167]
[1745640322031,37.50947167,151.39,151.35,13.85097167]
[1745640322526,6.6024,151.4,151.36,6.6036]
[1745640322733,23.66,151.42,151.37,7.24667167]
[1745640322930,23.66,151.42,151.39,7.24667167]
[1745640323131,6.6019,151.41,151.39,7.24667167]
[1745640323829,30.2615,151.42,151.39,7.24667167]
[1745640324132,30.90667167,151.45,151.39,7.24667167]
[1745640325032,6.6016,151.42,151.39,7.24667167]
[1745640325731,6.6018,151.41,151.39,7.24667167]
[1745640328236,6.6015,151.42,151.39,7.24667167]
[1745640329737,6.6018,151.41,151.39,7.24667167]
[1745640330340,7.24667167,151.43,151.38,2.0059]
[1745640330341,6.6022,151.4,151.38,2.0059]
[1745640330637,6.6022,151.4,151.37,30.90667167]
[1745640330837,7.24667167,151.43,151.37,30.90667167]
[1745640331132,7.24667167,151.43,151.39,7.24667167]
[1745640332038,6.6018,151.41,151.39,7.24667167]
[1745640332439,6.6012,151.43,151.39,13.84927167]
[1745640333339,6.6014,151.42,151.39,13.84927167]
[1745640334338,6.6014,151.42,151.39,7.24667167]
[1745640335638,6.6014,151.42,151.39,13.84927167]
[1745640336238,6.6014,151.42,151.39,7.24667167]
[1745640337939,6.6014,151.42,151.39,13.84927167]
[1745640339341,6.601,151.43,151.39,13.84927167]
[1745640339740,6.601,151.43,151.4,6.6022]
[1745640339940,23.66,151.46,151.42,7.24667167]
[1745640341246,6.6,151.45,151.42,13.84797167]
[1745640341445,7.24667167,151.47,151.42,13.84797167]
[1745640341745,6.5998,151.46,151.42,13.84797167]
[1745640341945,7.24667167,151.47,151.42,13.84797167]
[1745640343249,6.6001,151.45,151.42,13.84797167]
[1745640344042,6.5997,151.46,151.42,7.24667167]
[1745640344248,30.90667167,151.49,151.44,7.24667167]
[1745640344649,6.599,151.48,151.44,13.84687167]
[1745640345147,6.599,151.48,151.45,6.6]
[1745640345347,6.5984,151.49,151.46,7.24667167]
[1745640345548,32.85237167,151.52,151.46,7.24667167]
[1745640345747,6.5975,151.51,151.48,7.24667167]
[1745640346548,6.5971,151.52,151.48,13.84527167]
[1745640347550,7.24667167,151.54,151.5,7.24667167]
[1745640348051,6.5966,151.53,151.5,7.24667167]
[1745640348249,7.24667167,151.54,151.5,7.24667167]
[1745640348548,6.5966,151.53,151.5,7.24667167]
[1745640348749,7.24667167,151.54,151.5,7.24667167]
[1745640349549,6.5969,151.53,151.5,7.24667167]
[1745640350257,6.5969,151.53,151.5,13.84447167]
[1745640351157,23.64,151.55,151.5,7.24667167]
[1745640351654,6.5968,151.53,151.5,7.24667167]
[1745640354359,6.5971,151.52,151.5,7.24667167]
[1745640355159,6.5967,151.53,151.51,7.24667167]
[1745640356764,6.5962,151.54,151.51,7.24667167]
[1745640357467,6.5966,151.53,151.51,7.24667167]
[1745640357867,6.5967,151.53,151.51,7.24667167]
[1745640358562,7.24667167,151.53,151.48,7.24667167]
[1745640358768,7.24667167,151.49,151.44,23.62]
[1745640359069,7.24667167,151.47,151.44,23.62]
[1745640359367,6.5999,151.46,151.44,23.62]
[1745640360664,7.24667167,151.45,151.41,23.62]
[1745640360868,7.24667167,151.44,151.39,7.24667167]
[1745640361274,7.24667167,151.43,151.38,30.86667167]
[1745640363270,7.24667167,151.44,151.4,7.24667167]
[1745640363573,7.24667167,151.45,151.4,7.24667167]
[1745640364371,6.6012,151.43,151.4,7.24667167]
[1745640365574,7.24667167,151.45,151.4,7.24667167]
[1745640365575,6.6014,151.42,151.4,7.24667167]
[1745640365873,7.24667167,151.45,151.4,7.24667167]
[1745640366769,6.601,151.43,151.4,7.24667167]
[1745640367174,6.6006,151.44,151.4,13.84877167]
[1745640367374,23.62,151.46,151.42,7.24667167]
[1745640367575,23.62,151.46,151.38,23.62]
[1745640367576,32.77777167,151.49,151.43,7.24667167]
[1745640367875,6.5994,151.47,151.43,13.84757167]
[1745640368875,32.77777167,151.49,151.43,7.24667167]
[1745640369479,6.5997,151.46,151.43,7.24667167]
[1745640371180,7.24667167,151.46,151.42,7.24667167]
[1745640371368,7.24667167,151.46,151.41,7.24667167]
[1745640371867,6.6012,151.43,151.4,7.24667167]
[1745640373472,7.24667167,151.45,151.4,7.24667167]
[1745640373672,30.88667167,151.44,151.39,7.24667167]
[1745640374272,30.88667167,151.44,151.39,13.84927167]
[1745640374476,23.64,151.44,151.4,7.24667167]
[1745640374677,6.6012,151.43,151.4,7.24667167]
[1745640376384,6.6012,151.43,151.4,13.84877167]
[1745640377682,30.2405,151.44,151.42,7.24667167]
[1745640377889,6.6005,151.44,151.42,7.24667167]
[1745640380188,6.6009,151.43,151.41,7.24667167]
[1745640380484,30.86667167,151.47,151.41,7.24667167]
[1745640381384,6.6008,151.44,151.41,7.24667167]
[1745640384684,6.6002,151.45,151.41,7.24667167]
[1745640384984,23.62,151.47,151.43,7.24667167]
[1745640385286,6.5992,151.47,151.45,7.24667167]
[1745640385687,23.62,151.5,151.45,7.24667167]
[1745640385985,6.5988,151.48,151.45,13.84667167]
[1745640386189,23.62,151.5,151.47,7.24667167]
[1745640386388,6.5981,151.5,151.49,7.24667167]
[1745640386789,6.5975,151.51,151.49,7.24667167]
[1745640388289,6.5978,151.5,151.49,7.24667167]
[1745640388481,23.62,151.53,151.49,7.24667167]
[1745640389487,6.5978,151.51,151.49,7.24667167]
[1745640389887,23.62,151.53,151.49,7.24667167]
[1745640390090,6.5974,151.51,151.49,7.24667167]
[1745640390486,23.62,151.53,151.49,7.24667167]
[1745640392492,6.5977,151.51,151.49,7.24667167]
[1745640392890,23.62,151.53,151.49,7.24667167]
[1745640393191,9.24387167,151.54,151.49,7.24667167]
[1745640393491,23.62,151.53,151.49,7.24667167]
[1745640393689,6.5977,151.51,151.49,7.24667167]
[1745640394592,23.62,151.53,151.49,7.24667167]
[1745640394789,23.62,151.53,151.5,7.24667167]
[1745640396292,6.5977,151.51,151.5,7.24667167]
[1745640398901,7.24667167,151.57,151.5,7.24667167]
[1745640399198,23.62,151.56,151.54,7.24667167]
[1745640400103,6.5962,151.54,151.53,7.24667167]
[1745640402706,6.5962,151.54,151.52,7.24667167]
[1745640402906,7.24667167,151.53,151.47,7.24667167]
[1745640403106,23.62,151.52,151.46,30.86667167]
[1745640403411,6.5982,151.5,151.46,37.46597167]
[1745640404098,7.24667167,151.52,151.46,37.46597167]
[1745640404305,7.24667167,151.52,151.46,30.86667167]
[1745640404504,30.86667167,151.52,151.46,7.24667167]
[1745640404799,7.24667167,151.49,151.44,7.24667167]
[1745640405000,7.24667167,151.48,151.44,7.24667167]
[1745640405705,6.5994,151.47,151.44,7.24667167]
[1745640405907,6.5994,151.47,151.44,13.84707167]
[1745640406810,6.5994,151.47,151.46,7.24667167]
[1745640407010,6.5989,151.48,151.46,7.24667167]
[1745640408014,6.5991,151.47,151.46,7.24667167]
[1745640408312,7.24667167,151.49,151.44,7.24667167]
[1745640408508,7.24667167,151.46,151.41,7.24667167]
[1745640408708,6.6005,151.44,151.41,7.24667167]
[1745640409911,6.6005,151.44,151.4,23.6]
[1745640409912,6.6005,151.44,151.43,7.24667167]
[1745640413212,6.6002,151.45,151.43,7.24667167]
[1745640414716,7.24667167,151.47,151.43,7.24667167]
[1745640415917,6.6003,151.45,151.43,7.24667167]
[1745640416817,6.6005,151.44,151.43,7.24667167]
[1745640417319,6.6005,151.44,151.41,7.24667167]
[1745640417520,6.601,151.43,151.41,7.24667167]
[1745640422426,30.84667167,151.48,151.42,7.24667167]
[1745640422612,23.6,151.48,151.44,7.24667167]
[1745640423723,6.6,151.45,151.44,7.24667167]
[1745640425524,6.5996,151.46,151.44,7.24667167]
[1745640425724,23.6,151.48,151.45,7.24667167]
[1745640425923,23.6,151.48,151.47,7.24667167]
[1745640426222,6.5988,151.48,151.47,7.24667167]
[1745640426421,7.24667167,151.5,151.45,7.24667167]
[1745640426615,7.24667167,151.48,151.43,7.24667167]
[1745640427624,6.6005,151.44,151.43,7.24667167]
[1745640429423,6.6001,151.45,151.43,7.24667167]
[1745640429622,6.6001,151.45,151.44,7.24667167]